Cogmind - Beta 15 --- EXPLORER MODE // 2025.07.23 @ 19:27:56 // Winter2019/RPGLIKE Player: User15V Result: Self-destructed Performance ------------- Evolutions (7) 3500 Regions Visited (12) 2400 Robots Destroyed (84) 420 Value Destroyed (4227) 4227 Prototype IDs (12) 240 Alien Tech Used (0) 0 Bonus (2393) 2393 TOTAL SCORE: 13180 Bonus ------- High Alert Combat Kills 93 Entered DSFs 1000 Registered with UFD 300 Met Optimus in HQ 500 Hacked Protovariant 500 Cogmind --------- Core Integrity 989/1500 Matter 300/300 Energy 658/660 System Corruption 1% Temperature Cool (4) Movement Hovering (56) Location -3/Testing Parts ------- > --- POWER (2) -------- Light Particle Reactor Light Particle Reactor > --- PROPULSION (4) --- Antigrav Array Antigrav Array > --- UTILITY (11) ----- Power Amplifier Advanced Heat Sink Improved Cooling System Energy Well Machine Analyzer Advanced Terrain Scanner Energy Filter Advanced Transmission Jammer Advanced Reaction Control System Improved Phase Shifter Advanced Corruption Screen > --- WEAPON (5) ------- Improved Arc Projector Improved Arc Projector Improved Arc Projector Improved Arc Projector Powered Hammer > --- INVENTORY (5) ---- Advanced Force Field Heavy Laser Peak State ------------ > --- POWER ------------ Light Particle Reactor Light Particle Reactor > --- PROPULSION ------- Antigrav Array Antigrav Array > --- UTILITY ---------- Power Amplifier Advanced Heat Sink Improved Cooling System Energy Well Machine Analyzer Advanced Terrain Scanner Advanced Salvage Targeting Computer Armor Integrity Analyzer Advanced Transmission Jammer Advanced Thermal Shield Dynamic Insulation System > --- WEAPON ----------- Improved Arc Projector Improved Arc Projector Improved Arc Projector Improved Arc Projector Nanosword > --- INVENTORY -------- Improved Phase Shifter Layered Medium Armor Plating Heavy Laser [Rating: 137] Favorites ----------- Power Light Particle Reactor Engine Light Ion Engine Power Core Neutrino Core Reactor Light Particle Reactor Propulsion Wheel Leg Aluminum Leg Wheel Wheel Hover Unit Antigrav Array Utility Improved Cooling System Device Improved Cooling System Storage Energy Well Processor Targeting Computer Protection Weapon Shielding Weapon Improved Arc Projector Energy Gun Improved Arc Projector Ballistic Gun Assault Rifle Special Weapon Mining Laser Impact Weapon Powered Hammer Slashing Weapon Nanosword Build | -11 -10 -10 -8 -6 -6 -6 -6 -5 -4 -4 -3 -3 ------- Run | Yrd Mat Sub Scr Fac Was Fac DSF Fac Fac DSF Res Tes Slots Evolved 18 | 4 . . 3 7 . . . 1 . 1 2 . Power 1 | . . . . 1 . . . . . . . . Propulsion 3 | 1 . . 1 1 . . . . . . . . Utility 10 | 2 . . 1 4 . . . 1 . 1 1 . Weapon 4 | 1 . . 1 1 . . . . . . 1 . Parts Attached 48 | 6 . 1 4 4 . . 9 10 . 5 3 6 Power 8 | . . . 2 2 . . . 2 . 2 . . Engine 1 | . . . 1 . . . . . . . . . Core 5 | . . . 1 2 . . . 2 . . . . Reactor 2 | . . . . . . . . . . 2 . . Propulsion 5 | 2 . . . . . . 1 . . 2 . . Treads . | . . . . . . . . . . . . . Leg . | . . . . . . . . . . . . . Wheel 2 | 2 . . . . . . . . . . . . Hover 3 | . . . . . . . 1 . . 2 . . Flight . | . . . . . . . . . . . . . Utility 21 | 2 . . . . . . 7 3 . 1 3 5 Device 13 | 1 . . . . . . 5 1 . 1 2 3 Storage 1 | . . . . . . . 1 . . . . . Processor 5 | 1 . . . . . . 1 1 . . 1 1 Hackware . | . . . . . . . . . . . . . Protection 2 | . . . . . . . . 1 . . . 1 Artifact . | . . . . . . . . . . . . . Weapon 14 | 2 . 1 2 2 . . 1 5 . . . 1 Energy Gun 6 | . . . 1 . . . 1 4 . . . . Energy Cannon . | . . . . . . . . . . . . . Ballistic Gun 5 | 2 . . 1 2 . . . . . . . . Ballistic Cannon . | . . . . . . . . . . . . . Launcher . | . . . . . . . . . . . . . Special Weapon 1 | . . 1 . . . . . . . . . . Impact Weapon 1 | . . . . . . . . 1 . . . . Slashing Weapon 1 | . . . . . . . . . . . . 1 Piercing Weapon . | . . . . . . . . . . . . . Special Melee Weapon . | . . . . . . . . . . . . . Unidentified Prototypes 1 | . . . . . . . . . . . . 1 Parts Lost 1 | . . . . . . . 1 . . . . . Power . | . . . . . . . . . . . . . Propulsion . | . . . . . . . . . . . . . Utility 1 | . . . . . . . 1 . . . . . Weapon . | . . . . . . . . . . . . . Highest Loss Streak 1 | . . . . . . . 1 . . . . . To Critical Strikes . | . . . . . . . . . . . . . Average Backups 2 | . 1 1 1 1 1 1 3 4 5 3 2 2 Power . | . . . . . . . . . 1 . . . Propulsion . | . . . . 1 1 1 . . . . . . Utility . | . . . . . . . . . . 1 1 1 Weapon 1 | . 1 1 1 . . . 2 4 4 2 1 1 Tool/Special . | . . . . . . . . . . . . . Unused Backups 11 | 4 . . . . . . 5 . . 1 . 1 Power 1 | 1 . . . . . . . . . . . . Propulsion 1 | 1 . . . . . . . . . . . . Utility 3 | 1 . . . . . . 1 . . . . 1 Weapon 6 | 1 . . . . . . 4 . . 1 . . Tool/Special . | . . . . . . . . . . . . . Average Slot Usage (%) 86 | . 100 100 98 53 55 55 73 92 94 90 83 87 Engine 3 | . 12 12 11 4 . . . . . . . . Core 3 | . . . . 2 11 11 11 10 10 7 . . Reactor 3 | . . . . . . . . . . 2 9 9 Wheel 9 | . 25 25 24 11 11 11 11 10 10 3 . . Hover 4 | . . . . . . . 2 5 5 7 9 9 Device 22 | . 12 12 11 5 5 5 18 27 26 29 28 32 Storage 2 | . . . . . . . . 5 5 5 4 4 Processor 9 | . 12 12 11 5 5 5 7 8 10 10 9 9 Protection 4 | . 12 12 11 5 5 5 1 3 5 5 . 1 Energy Gun 11 | . . . 2 5 5 5 9 16 15 15 17 18 Ballistic Gun 6 | . 25 23 11 10 11 11 11 1 . . . . Special Weapon 1 | . . 1 8 . . . . . . . . . Impact Weapon 1 | . . . . . . . . 2 5 5 4 2 Peak Build Rating 137 | 10 10 10 16 27 26 26 68 87 85 124 132 137 Average Rating 73 | 6 10 10 11 19 26 26 45 81 85 109 125 132 On Entrance 47 | 4 10 10 10 16 26 26 26 68 85 85 124 132 Naked Turns . | . . . . . . . . . . . . . Heaviest Build 72 | 8 8 8 14 32 32 32 47 68 66 69 69 72 Greatest Support 72 | 25 25 25 25 30 30 30 30 35 35 67 72 72 Greatest Overweight (x) 2 | . . . . 1 1 1 1 2 1 1 1 . Average Overweight (x) . | . . . . . 1 1 1 1 1 . . . Largest Inventory Capacity 5 | 4 4 4 4 5 5 5 5 5 5 5 5 5 Average Capacity 4 | 4 4 4 4 4 5 5 5 5 5 5 5 5 Most Carried 5 | 2 1 1 3 4 1 1 5 5 5 5 4 5 Average Carried 2 | . 1 1 1 1 1 1 3 4 5 3 2 2 Final Capacity 5 | 4 4 4 4 5 5 5 5 5 5 5 5 5 Final Carried 5 | 1 1 1 2 1 1 1 5 5 5 4 3 2 Class Distribution -------------------- 27% | Hacker-Ninja 26% | Hacker-Mutant 21% | Hacker-Skirmisher 16% | Hacker-Assassin 7% | Hacker-Scout Dominant Class ---------------- Hacker-Mutant | -10/Materials Hacker-Mutant | -10/Subcaves Hacker-Mutant | -8/Scraptown Hacker-Skirmisher | -6/Factory Hacker-Skirmisher | -6/Waste Hacker-Skirmisher | -6/Factory Hacker-Skirmisher | -6/DSF Hacker-Assassin | -5/Factory Hacker-Assassin | -4/Factory Hacker-Assassin | -4/DSF Hacker-Ninja | -3/Research Hacker-Ninja | -3/Testing Resources | -11 -10 -10 -8 -6 -6 -6 -6 -5 -4 -4 -3 -3 ----------- Run | Yrd Mat Sub Scr Fac Was Fac DSF Fac Fac DSF Res Tes Matter Collected 1113 | 294 18 12 40 40 . . 294 153 . 121 40 101 Remotely . | . . . . . . . . . . . . . Salvage Created 4772 | 200 83 67 . 71 . . 399 415 . 533 1612 1392 Parts 262 | 16 6 3 . 2 . . 35 13 . 32 88 67 Haulers Intercepted 5 | . . . . . . . 1 2 . 1 1 . Recyclers Shooed 1 | 1 . . . . . . . . . . . . Parts Field Recycled . | . . . . . . . . . . . . . Retrieved Matter . | . . . . . . . . . . . . . Parts Self-Destructed . | . . . . . . . . . . . . . Prevented . | . . . . . . . . . . . . . Kills | -11 -10 -10 -8 -6 -6 -6 -6 -5 -4 -4 -3 -3 ------- Run | Yrd Mat Sub Scr Fac Was Fac DSF Fac Fac DSF Res Tes Combat Hostiles Destroyed 53 | . . 1 . 1 . . 8 1 . 7 18 17 Melee 2 | . . . . . . . . . . . 1 1 Guns 24 | . . 1 . 1 . . 8 1 . 5 4 4 AOE 6 | . . . . . . . . . . 1 5 . Classes Destroyed 19 | 2 . 1 . 1 . . 5 2 . 1 6 1 Worker 6 | . . . . . . . . . . . 3 3 Builder 1 | . . . . . . . . . . . 1 . Tunneler 7 | 5 1 . . . . . . . . . 1 . Hauler 5 | . . . . . . . 1 2 . 1 1 . Recycler 2 | 1 1 . . . . . . . . . . . Mechanic 2 | . . . . . . . . . . . 2 . Operator 3 | . . . . . . . . 1 . . 1 1 Watcher 4 | . . . . . . . . 1 . . 1 2 Swarmer 6 | . . . . . . . 2 . . 4 . . Grunt 15 | . . . . . . . . . . 2 10 3 Brawler 1 | . . . . . . . . . . . 1 . Duelist 2 | . . . . . . . . . . . 1 1 Sentry 3 | . . . . 1 . . . 1 . . 1 . Specialist 2 | . . . . . . . 2 . . . . . Hunter 18 | . . . . . . . 3 . . . 5 10 Programmer 3 | . . . . . . . . . . . 1 2 Heavy 2 | . . . . . . . 1 . . 1 . . Alpha 7 1 | . . . . . . . . . . . . 1 Subdweller 1 | . . 1 . . . . . . . . . . Best Kill Streak 10 | 4 2 1 . 1 . . 4 2 . 4 10 7 Combat Bots Only 6 | . . 1 . 1 . . 4 1 . 4 6 6 Max Kills in Single Turn 3 | 1 1 1 . 1 . . 2 1 . 3 3 2 Gunslinging 2 | . . . . . . . 1 . . 2 . . Exploded 1 | . . . . . . . . . . 1 1 . Melee 1 | . . . . . . . . . . . 1 1 Uniques/NPCs Destroyed . | . . . . . . . . . . . . . Combat | -11 -10 -10 -8 -6 -6 -6 -6 -5 -4 -4 -3 -3 -------- Run | Yrd Mat Sub Scr Fac Was Fac DSF Fac Fac DSF Res Tes Hostile Shots Fired 669 | . . 3 . 36 . . 72 4 . 59 183 312 Missed 304 | . . 1 . 15 . . 18 3 . 22 66 179 Hits 365 | . . 2 . 21 . . 54 1 . 37 117 133 Melee 4 | . . . . . . . . . . . 3 1 Projectile 361 | . . 2 . 21 . . 54 1 . 37 114 132 AOE 2 | . . . . 2 . . . . . . . . Critical Strikes 15 | . . . . . . . . . . . 2 13 Part Disruptions 4 | . . . . . . . 3 . . . 1 . Actively Blocked 1 | . . . . . . . . . . . 1 . Damage Taken 4233 | . . 73 . 164 . . 527 13 . 727 1251 1478 Core 3187 | . . 52 . 116 . . 402 10 . 483 977 1147 Absorbed by Shields 27 | . . . . . . . . . . 27 . . Redirected to Core 2713 | . . 38 . 89 . . 313 10 . 416 877 970 Redirected to Shielding 51 | . . 9 . 16 . . 26 . . . . . Ignored by Resistances 3438 | . . 42 . 108 . . 314 8 . 527 1350 1089 Core Remaining (%) 88 | 100 . . 93 . . . 91 90 . 69 . . Volleys Fired 176 | 11 2 4 . 5 . . 21 9 . 28 49 47 Largest 4 | 2 2 2 . 3 . . 4 4 . 3 4 4 Hottest 260 | 40 40 100 . 117 . . 180 260 . 195 260 260 Shots Fired 627 | 22 4 7 . 15 . . 78 34 . 84 195 188 Gun 626 | 22 4 6 . 15 . . 78 34 . 84 195 188 Cannon . | . . . . . . . . . . . . . Launcher . | . . . . . . . . . . . . . Special 1 | . . 1 . . . . . . . . . . Kinetic 86 | 22 4 6 . 10 . . 38 6 . . . . Thermal 52 | . . 1 . 5 . . 40 6 . . . . Explosive . | . . . . . . . . . . . . . Electromagnetic 489 | . . . . . . . . 22 . 84 195 188 Robot Hit Streak 76 | 9 12 17 . 27 . . 76 23 . 37 41 50 Robot Miss Streak 2 | 1 . . . . . . 1 2 . 2 2 2 Penetration Max . | . . . . . . . . . . . . . Secondary Targets 13 | . . . . . . . 4 . . 3 4 2 Max Gunslinging Chain 2 | . . . . . . . 1 . . 2 1 1 Shots Hit Robots 570 | 16 3 5 . 10 . . 64 24 . 74 186 188 Core Hits 232 | 8 3 2 . 5 . . 28 12 . 28 82 64 Critical Kills . | . . . . . . . . . . . . . Critical Parts Destroyed 6 | . . . . . . . . . . . . 6 Critical Strikes 8 | . . . . 1 . . 1 . . . . 6 Burn 2 | . . . . 1 . . 1 . . . . . Smash 6 | . . . . . . . . . . . . 6 Melee Attacks 38 | . . . . . . . . 3 . . 9 26 Impact 38 | . . . . . . . . 3 . . 9 26 Slashing . | . . . . . . . . . . . . . Piercing . | . . . . . . . . . . . . . Sneak Attacks 2 | . . . . . . . . . . . 2 . Combat Hostiles . | . . . . . . . . . . . . . Follow-up Attacks . | . . . . . . . . . . . . . Damage Inflicted 11939 | 154 32 53 . 144 . . 1057 408 . 991 4952 4148 Guns 7521 | 154 32 53 . 144 . . 1057 371 . 829 2494 2387 Cannons . | . . . . . . . . . . . . . Explosions 3117 | . . . . . . . . . . 162 2045 910 Melee 1301 | . . . . . . . . 37 . . 413 851 Ramming . | . . . . . . . . . . . . . Kinetic 789 | 154 32 53 . 68 . . 418 64 . . . . Thermal 3885 | . . . . 76 . . 639 53 . 162 2045 910 Explosive . | . . . . . . . . . . . . . Electromagnetic 5964 | . . . . . . . . 254 . 829 2494 2387 Impact 1301 | . . . . . . . . 37 . . 413 851 Slashing . | . . . . . . . . . . . . . Piercing . | . . . . . . . . . . . . . Highest Corruption 3 | . . . . . 3 3 3 . . . 1 1 Average Corruption 1 | . . . . . 3 3 3 . . . 1 1 Corruption Purged . | . . . . . . . . . . . . . Corruption Blocked 3 | . . . . . . . . . . . . 3 Effects 14 | . . . . . 1 1 4 . . . 3 5 Message Errors 1 | . . . . . . . . . . . 1 . Matter Fused 7 | . . . . . 1 . 2 . . . . 4 Energy Discharges 3 | . . . . . . . 1 . . . 1 1 Data Loss (major) 1 | . . . . . . 1 . . . . . . Misfires 1 | . . . . . . . 1 . . . . . Weapon Failures 1 | . . . . . . . . . . . 1 . Overload Shots . | . . . . . . . . . . . . . Overflow Damage 631 | . . . . . . . . 2 . . 107 522 Projectiles . | . . . . . . . . . . . . . Explosions 42 | . . . . . . . . . . . 19 23 Melee 589 | . . . . . . . . 2 . . 88 499 Knockbacks 9 | . . . . . . . . . . . 1 8 Impact 9 | . . . . . . . . . . . 1 8 Kinetic . | . . . . . . . . . . . . . Secondary . | . . . . . . . . . . . . . Self-Inflicted Damage 65 | . . . . . . . . . . . 65 . Shots 4 | . . . . . . . . . . . 4 . Rammed . | . . . . . . . . . . . . . Targets Rammed . | . . . . . . . . . . . . . Kicked . | . . . . . . . . . . . . . Crushed . | . . . . . . . . . . . . . Highest Temperature 203 | . . . . 40 . . 6 96 . . 203 . Average Temperature 71 | . . . . 19 . . 3 51 . . 88 . Received Heat Transfer 502 | . . 12 . 36 . . . . . 39 264 151 Siege Activations . | . . . . . . . . . . . . . Martial Activations . | . . . . . . . . . . . . . Shielding Activations . | . . . . . . . . . . . . . Robots Disrupted 23 | . . . . . . . . 1 . 2 12 8 Combat Hostiles 21 | . . . . . . . . . . 2 11 8 Robots Corrupted 25 | . . . . . . . . 1 . 1 10 13 Combat Hostiles 21 | . . . . . . . . . . 1 8 12 Parts Fried 72 | . . . . . . . . 9 . 12 23 28 Impact Corruptions 22 | . . . . . . . . 1 . . 3 18 Robots Melted . | . . . . . . . . . . . . . Combat Hostiles . | . . . . . . . . . . . . . Parts Melted 5 | . . 1 . . . . 3 1 . . . . Heat Transferred 3889 | . . . . 222 . . 1406 111 . 100 1450 600 Parts Sabotaged . | . . . . . . . . . . . . . Parts Stolen . | . . . . . . . . . . . . . Parts Stripped . | . . . . . . . . . . . . . Power Chain Reactions 17 | . . . . . . . . . . 1 10 6 Alert | -11 -10 -10 -8 -6 -6 -6 -6 -5 -4 -4 -3 -3 ------- Run | Yrd Mat Sub Scr Fac Was Fac DSF Fac Fac DSF Res Tes Maximum Alert Level 2 | . . . . . . . . . . 1 2 1 Low Security (%) 63 | 100 100 . . 100 100 100 100 100 100 85 20 29 Level 1 34 | . . . . . . . . . . 14 67 70 Level 2 2 | . . . . . . . . . . . 12 . Level 3 . | . . . . . . . . . . . . . Level 4 . | . . . . . . . . . . . . . Level 5 . | . . . . . . . . . . . . . High Security . | . . . . . . . . . . . . . Max Security . | . . . . . . . . . . . . . Peak Influence 442 | 15 10 . . 30 . 14 195 90 . 253 442 398 Initial 180 | . . . . . . . . 75 . . 106 180 Average 159 | 3 1 . . 2 . 3 77 20 . 108 311 260 Influence Increases 2011 | 30 10 . . 35 . 14 205 60 . 253 771 633 Destroy 0b10 Robot/C 1040 | . . . . 20 . . 160 20 . 140 360 340 Destroy 0b10 Robot/NC 150 | 30 10 . . . . . 5 20 . 5 50 30 Destroy Leader 214 | . . . . 10 . . 40 16 . 20 64 64 Allied During Kill 3 | . . . . . . . . . . . 3 . Successful Hack 33 | . . . . 5 . 14 . . . . 14 . Disable Machine 28 | . . . . . . . . . . 4 4 20 Anti-Garrison Action 150 | . . . . . . . . . . . 150 . Destroy Structure 258 | . . . . . . . . 4 . 24 126 104 Lose Combat Pursuer 135 | . . . . . . . . . . 60 . 75 Influence Decreases 1753 | 30 10 . . 35 . 14 10 255 . . 597 802 Entered New Map 514 | . . . . . . . . 120 . . 147 247 Time Decay 1229 | 30 10 . . 35 . 14 . 135 . . 450 555 Lost Part 10 | . . . . . . . 10 . . . . . Squads Dispatched 14 | . . . . . . . 2 . . . 7 5 Investigation 2 | . . . . . . . . . . . 2 . Extermination 3 | . . . . . . . . . . . 2 1 Reinforcement 7 | . . . . . . . 2 . . . 2 3 Assault 2 | . . . . . . . . . . . 1 1 Garrison . | . . . . . . . . . . . . . Intercept . | . . . . . . . . . . . . . Searches Triggered . | . . . . . . . . . . . . . Construction Impeded . | . . . . . . . . . . . . . Haulers Reinforced 1 | . . . . . . . . . . . 1 . Active Scanning Responses . | . . . . . . . . . . . . . Cargo Convoy Interrupts . | . . . . . . . . . . . . . Stealth | -11 -10 -10 -8 -6 -6 -6 -6 -5 -4 -4 -3 -3 --------- Run | Yrd Mat Sub Scr Fac Was Fac DSF Fac Fac DSF Res Tes Distress Signals 1 | . . . . . . . . . . . . 1 Communications Jammed 31 | . . . . . . . 1 . . 12 3 15 Distress Signals 15 | . . . . . . . 1 . . . 1 13 Times Spotted 90 | . . 1 . 1 6 . 8 3 . 11 29 31 Peak Tracking Total 7 | . . 1 . 1 6 . 2 1 . 4 5 7 Tactical Retreats 4 | . . . . . . . . . . 2 . 2 Traps | -11 -10 -10 -8 -6 -6 -6 -6 -5 -4 -4 -3 -3 ------- Run | Yrd Mat Sub Scr Fac Was Fac DSF Fac Fac DSF Res Tes Traps Triggered 15 | . . . . 1 . . 3 4 . 6 . 1 Indirectly . | . . . . . . . . . . . . . Trap Hack Attempts . | . . . . . . . . . . . . . Triggered . | . . . . . . . . . . . . . Disarmed . | . . . . . . . . . . . . . Reprogrammed . | . . . . . . . . . . . . . Reused . | . . . . . . . . . . . . . Traps Extracted . | . . . . . . . . . . . . . Installed . | . . . . . . . . . . . . . Triggered . | . . . . . . . . . . . . . Machines | -11 -10 -10 -8 -6 -6 -6 -6 -5 -4 -4 -3 -3 ---------- Run | Yrd Mat Sub Scr Fac Was Fac DSF Fac Fac DSF Res Tes Machines Disabled 9 | . . . . . . . . . . 1 2 6 Max in Single Turn 2 | . . . . . . . . . . 1 1 2 Garrison Access 4 | . . . . . . 1 . 1 . . 1 1 Machines Repaired . | . . . . . . . . . . . . . Machines Dismantled . | . . . . . . . . . . . . . Machines Sabotaged . | . . . . . . . . . . . . . Overloaded Fab Kills . | . . . . . . . . . . . . . Hacking | -11 -10 -10 -8 -6 -6 -6 -6 -5 -4 -4 -3 -3 --------- Run | Yrd Mat Sub Scr Fac Was Fac DSF Fac Fac DSF Res Tes Machines Accessed 14 | . . . 4 1 . 3 . 1 1 . 2 2 Terminals 6 | . . . . 1 . 2 . . 1 . 1 1 Fabricators . | . . . . . . . . . . . . . Repair Stations . | . . . . . . . . . . . . . Recycling Units . | . . . . . . . . . . . . . Scanalyzers . | . . . . . . . . . . . . . Garrison Access 4 | . . . . . . 1 . 1 . . 1 1 Total Hacks 34 | . . . 20 1 . 4 . 1 1 . 5 2 Successful 29 | . . . 20 1 . 3 . 1 1 . 1 2 Failed 5 | . . . . . . 1 . . . . 4 . Catastrophic 1 | . . . . . . . . . . . 1 . Database Lockouts . | . . . . . . . . . . . . . Manual 5 | . . . . 1 . 2 . . . . 2 . Terminals 8 | . . . . 1 . 3 . . 1 . 2 1 Fabricators . | . . . . . . . . . . . . . Repair Stations . | . . . . . . . . . . . . . Recycling Units . | . . . . . . . . . . . . . Scanalyzers . | . . . . . . . . . . . . . Garrison Access 6 | . . . . . . 1 . 1 . . 3 1 Terminal Hacks 26 | . . . 20 1 . 2 . . 1 . 1 1 Record 19 | . . . 19 . . . . . . . . . Open DSF 2 | . . . . . . 1 . . 1 . . . Level Access Points 2 | . . . . 1 . 1 . . . . . . Branch Access Points 1 | . . . . . . . . . . . 1 . Proto ID Catalog 1 | . . . 1 . . . . . . . . . Protovariant Controls 1 | . . . . . . . . . . . . 1 Fabricator Hacks . | . . . . . . . . . . . . . Repair Station Hacks . | . . . . . . . . . . . . . Recycling Unit Hacks . | . . . . . . . . . . . . . Scanalyzer . | . . . . . . . . . . . . . Garrison Access Hacks 3 | . . . . . . 1 . 1 . . . 1 Seal Access 3 | . . . . . . 1 . 1 . . . 1 Unauthorized Hacks . | . . . . . . . . . . . . . Terminals . | . . . . . . . . . . . . . Fabricators . | . . . . . . . . . . . . . Repair Stations . | . . . . . . . . . . . . . Recycling Units . | . . . . . . . . . . . . . Scanalyzers . | . . . . . . . . . . . . . Garrison Access . | . . . . . . . . . . . . . Data Cores Recovered 2 | . . . . . . . . 1 . . . 1 Used . | . . . . . . . . . . . . . Hacking Detections 3 | . . . . . . 1 . . . . 2 . Full Trace Events 2 | . . . . . . . . . . . 2 . Feedback Events . | . . . . . . . . . . . . . Feedback Blocked . | . . . . . . . . . . . . . Robot Schematics Acquired 1 | . . . . . . . . . . . . 1 Robots Built . | . . . . . . . . . . . . . Authchips . | . . . . . . . . . . . . . Time . | . . . . . . . . . . . . . Total Robot Build Rating . | . . . . . . . . . . . . . Part Schematics Acquired 3 | . . . . . . . . . . . . 3 Parts Built . | . . . . . . . . . . . . . Authchips . | . . . . . . . . . . . . . Time . | . . . . . . . . . . . . . Total Part Build Rating . | . . . . . . . . . . . . . Parts Repaired . | . . . . . . . . . . . . . Time . | . . . . . . . . . . . . . Parts Recycled . | . . . . . . . . . . . . . Recycled Matter . | . . . . . . . . . . . . . Retrieved Matter . | . . . . . . . . . . . . . Retrieved Components . | . . . . . . . . . . . . . Parts Scanalyzed . | . . . . . . . . . . . . . Part Schematics Acquired . | . . . . . . . . . . . . . Parts Damaged . | . . . . . . . . . . . . . Bothacking | -11 -10 -10 -8 -6 -6 -6 -6 -5 -4 -4 -3 -3 ------------ Run | Yrd Mat Sub Scr Fac Was Fac DSF Fac Fac DSF Res Tes Used RIF Installer . | . . . . . . . . . . . . . Robots Hacked . | . . . . . . . . . . . . . Non-combat . | . . . . . . . . . . . . . Combat . | . . . . . . . . . . . . . Robot Hacks Applied . | . . . . . . . . . . . . . Relay Couplers Released . | . . . . . . . . . . . . . Fabnet Peak Effective % . | . . . . . . . . . . . . . Robots Rewired 3 | . . . . . . . . . . . 3 . Allies Hacked . | . . . . . . . . . . . . . Hacks Repelled . | . . . . . . . . . . . . . Allies | -11 -10 -10 -8 -6 -6 -6 -6 -5 -4 -4 -3 -3 -------- Run | Yrd Mat Sub Scr Fac Was Fac DSF Fac Fac DSF Res Tes Total Allies 3 | . . . . . . . . . . . 3 . Largest Group 3 | . . . . . . . . . . . 3 . Highest-Rated Group 205 | . . . . . . . . . . . 205 . Highest-Rated Ally 116 | . . . . . . . . . . . 116 . Total Orders . | . . . . . . . . . . . . . Ally Attacks 4 | . . . . . . . . . . . 4 . Total Damage 112 | . . . . . . . . . . . 112 . Kills . | . . . . . . . . . . . . . Allies Corrupted 1 | . . . . . . . . . . . 1 . Allies Melted . | . . . . . . . . . . . . . Intel | -11 -10 -10 -8 -6 -6 -6 -6 -5 -4 -4 -3 -3 ------- Run | Yrd Mat Sub Scr Fac Was Fac DSF Fac Fac DSF Res Tes Active Infowar (turns) 3712 | 52 68 236 667 163 75 56 288 403 2 348 607 747 IFF 337 | . . . . . . . 214 123 . . . . Terrain 3704 | 52 68 236 667 163 75 56 288 395 2 348 607 747 Machine Analysis 814 | . . . . . . . . . . . 67 747 Jamming 2163 | . . . . . . . 56 403 2 348 607 747 Robot Analysis Total . | . . . . . . . . . . . . . Derelict Logs Recovered . | . . . . . . . . . . . . . Drone Launches . | . . . . . . . . . . . . . Drone Recoveries . | . . . . . . . . . . . . . Exploration | -11 -10 -10 -8 -6 -6 -6 -6 -5 -4 -4 -3 -3 ------------- Run | Yrd Mat Sub Scr Fac Was Fac DSF Fac Fac DSF Res Tes Turns Passed 3755 | 95 68 236 667 163 75 56 288 403 2 348 607 747 Spaces Moved 2898 | 47 35 73 801 170 79 41 131 332 3 161 467 558 Core . | . . . . . . . . . . . . . Treads . | . . . . . . . . . . . . . Legs 32 | 32 . . . . . . . . . . . . Wheels 1731 | 15 35 73 801 170 79 41 131 332 3 51 . . Hover 1135 | . . . . . . . . . . 110 467 558 Flight . | . . . . . . . . . . . . . Fastest Speed 56 | 80 80 80 80 80 95 95 95 95 95 56 56 56 Average Speed 76 | 107 80 80 80 83 95 95 95 95 95 102 56 56 Slowest Speed 120 | 120 80 80 80 95 95 95 95 110 95 110 106 56 Overloaded Moves . | . . . . . . . . . . . . . Propulsion Burnouts . | . . . . . . . . . . . . . Robots Hopped . | . . . . . . . . . . . . . Potential Cave-ins . | . . . . . . . . . . . . . Cave-ins Triggered . | . . . . . . . . . . . . . Exploration Rate (%) 39 | 3 7 7 60 7 90 2 96 14 . 96 14 78 Regions Visited 12 Branch Regions 3 Pre-discovered Areas 2 | . . . 2 . . . . . . . . . Known Exits Taken 7 | 1 1 . 1 . . 1 . 1 1 . 1 . Unknown Exits Taken 1 | . . 1 . . . . . . . . . . Scrap Searched 5 | . . . 5 . . . . . . . . . Spaces Dug 7 | . . . . . . . . 2 . . 1 4 Terrain Destroyed 142 | . . . . . . . . 2 . 15 64 61 Melee 7 | . . . . . . . . 2 . . 1 4 Projectile . | . . . . . . . . . . . . . AOE 135 | . . . . . . . . . . 15 63 57 Terrain Rammed . | . . . . . . . . . . . . . Walls Destroyed . | . . . . . . . . . . . . . Machines Disabled . | . . . . . . . . . . . . . Actions | -11 -10 -10 -8 -6 -6 -6 -6 -5 -4 -4 -3 -3 --------- Run | Yrd Mat Sub Scr Fac Was Fac DSF Fac Fac DSF Res Tes Total 3967 | 72 71 241 829 184 78 57 255 389 2 284 672 833 Wait 468 | . 34 164 14 . . 17 36 13 . 5 56 129 Move 2887 | 46 34 72 800 170 78 40 130 331 2 160 466 558 Hop . | . . . . . . . . . . . . . Pick Up 49 | 7 . . 6 3 . . 14 5 . 5 3 6 Fast Attach 18 | . . . . . . . 3 13 . 2 . . Attach 37 | 6 . . 4 3 . . 6 4 . 3 4 7 Detach . | . . . . . . . . . . . . . Swap 5 | . . 1 . 1 . . . 3 . . . . Drop 39 | 2 . . 5 2 . . 5 8 . 8 2 7 Fire 176 | 11 2 4 . 5 . . 21 9 . 28 49 47 Melee 38 | . . . . . . . . 3 . . 9 26 Ram . | . . . . . . . . . . . . . Kick . | . . . . . . . . . . . . . Crush . | . . . . . . . . . . . . . Escape Stasis 90 | . . . . . . . 16 . . 61 . 13 Rewire 8 | . . . . . . . . . . . 8 . Trap . | . . . . . . . . . . . . . Miscellaneous 152 | . 1 . . . . . 24 . . 12 75 40 Route ------- -11/Scrapyard -10/Materials -10/Subcaves -8/Scraptown -6/Factory (discovered 4 exits: Fac x4) -6/Waste -6/Factory (discovered 5 exits: Fac x4 / DSF) -6/DSF -5/Factory (discovered 2 exits: *Fac / *Upp) -4/Factory -4/DSF -3/Research (discovered 2 exits: *Tes x2) -3/Testing (discovered 1 exit: *Res) History --------- Turn | Location | Event 1 | -11/Scrapyard | Upgraded with Propulsion slot (x1) 1 | -11/Scrapyard | Upgraded with Utility slot (x2) 1 | -11/Scrapyard | Upgraded with Weapon slot (x1) 1 | -11/Scrapyard | Identified exit to Materials 1 | -11/Scrapyard | Discovered exit to Materials (range 0) 96 | -11/Scrapyard | Entered Materials 97 | -10/Materials | Met a group of wandering Federalists 148 | -10/Materials | Identified exit to Subcaves 148 | -10/Materials | Discovered exit to Subcaves (range 5) 164 | -10/Materials | Entered Subcaves 164 | -10/Subcaves | Accompanied by 5 allies 165 | -10/Subcaves | Continued accompanying wandering Federalists (5) 165 | -10/Subcaves | Approached by a straggling Scientist 265 | -10/Subcaves | Lost 3 allies 305 | -10/Subcaves | Build established: Hacker-Mutant 386 | -10/Subcaves | Wandering Federalist uncovered a shortcut to Scraptown 400 | -10/Subcaves | Entered Scraptown 402 | -8/Scraptown | Reached level 2 402 | -8/Scraptown | Reached level 3 455 | -8/Scraptown | Visited UFD Registry 455 | -8/Scraptown | Registered with UFD as "Flashsplitter" 478 | -8/Scraptown | Visited Cyclists 485 | -8/Scraptown | Entered Cyclist Reading Room 487 | -8/Scraptown | Learned location of Zion (-7) 521 | -8/Scraptown | Heard Great Nut preacher, LISTEN AND RECITE! 522 | -8/Scraptown | Visited Comm Corps 547 | -8/Scraptown | Visited TADAMA 561 | -8/Scraptown | Visited Science Testing Area 761 | -8/Scraptown | Visited Science Guys 788 | -8/Scraptown | Visited Curators Association 848 | -8/Scraptown | Visited Chapter 10 869 | -8/Scraptown | Visited Scrapoid Pod Storage 881 | -8/Scraptown | Visited DA-N13 Charitable Foundation 892 | -8/Scraptown | Found DCF Scrap (28 items) 933 | -8/Scraptown | Visited Botcube Research 949 | -8/Scraptown | Visited Derelict Rescue Squad 973 | -8/Scraptown | Visited Observation Area 1023 | -8/Scraptown | Upgraded with Propulsion slot (x1) 1023 | -8/Scraptown | Upgraded with Utility slot (x1) 1023 | -8/Scraptown | Upgraded with Weapon slot (x1) 1024 | -8/Scraptown | Met Optimus 1024 | -8/Scraptown | Reached level 4 1024 | -8/Scraptown | Accepted into 0bPrime 1056 | -8/Scraptown | Identified exit to Factory 1056 | -8/Scraptown | Discovered exit to Factory (range 13) 1067 | -8/Scraptown | Entered Factory 1069 | -6/Factory | Reached level 5 1069 | -6/Factory | Reached level 6 1069 | -6/Factory | Reached level 7 1069 | -6/Factory | Reached level 8 1069 | -6/Factory | Reached level 9 1069 | -6/Factory | Reached level 10 1069 | -6/Factory | Reached level 11 1069 | -6/Factory | Reached level 12 1069 | -6/Factory | Reached level 13 1069 | -6/Factory | Reached level 14 1077 | -6/Factory | Upgraded with Power slot (x1) 1077 | -6/Factory | Upgraded with Propulsion slot (x1) 1077 | -6/Factory | Upgraded with Utility slot (x4) 1077 | -6/Factory | Upgraded with Weapon slot (x1) 1133 | -6/Factory | Identified exit to Factory 1230 | -6/Factory | Sucked down chute 1230 | -6/Factory | Entered Waste 1233 | -6/Waste | Spotted C-40 Crusher 1245 | -6/Waste | EMP discharged 1251 | -6/Waste | Spotted C-40 Crusher 1260 | -6/Waste | Spotted C-40 Crusher 1261 | -6/Waste | Spotted C-40 Crusher 1265 | -6/Waste | Spotted C-40 Crusher 1267 | -6/Waste | Spotted C-40 Crusher 1289 | -6/Waste | Identified exit to Factory 1289 | -6/Waste | Discovered exit to Factory (range 15) 1305 | -6/Waste | Entered Factory 1312 | -6/Factory | Build established: Hacker-Skirmisher 1361 | -6/Factory | Identified exit to DSF 1361 | -6/Factory | Entered DSF 1361 | -6/DSF | Reached level 15 1433 | -6/DSF | Additional patrols routed to DSF 1479 | -6/DSF | Reached level 16 1563 | -6/DSF | Discovered exit to Factory (range 16) 1649 | -6/DSF | Entered Factory 1651 | -5/Factory | Reached level 17 1692 | -5/Factory | Upgraded with Utility slot (x1) 1850 | -5/Factory | Identified exit to Upper Caves 1850 | -5/Factory | Discovered exit to Upper Caves (range 15) 2032 | -5/Factory | Identified exit to Factory 2032 | -5/Factory | Discovered exit to Factory (range 15) 2052 | -5/Factory | Entered another Factory area 2054 | -4/Factory | Reached level 18 2054 | -4/Factory | Reached level 19 2054 | -4/Factory | Identified exit to DSF 2054 | -4/Factory | Entered DSF 2054 | -4/DSF | Upgraded with Utility slot (x1) 2056 | -4/DSF | Reached level 20 2096 | -4/DSF | Additional patrols routed to DSF 2139 | -4/DSF | Build established: Hacker-Assassin 2196 | -4/DSF | Identified exit to Research 2196 | -4/DSF | Discovered exit to Research (range 16) 2402 | -4/DSF | Entered Research 2404 | -3/Research | Reached level 21 2404 | -3/Research | Reached level 22 2448 | -3/Research | Upgraded with Utility slot (x1) 2448 | -3/Research | Upgraded with Weapon slot (x1) 2493 | -3/Research | Reached level 23 2498 | -3/Research | Core integrity fell below 50% 2640 | -3/Research | Reached level 24 2739 | -3/Research | Identified exit to Testing 2756 | -3/Research | Build established: Hacker-Ninja 2829 | -3/Research | Spotted B-86 Titan 2873 | -3/Research | Rewired B-86 Titan 3009 | -3/Research | Entered Testing 3011 | -3/Testing | Reached level 25 3030 | -3/Testing | Protovariant out of control (PL-T7MT9RIF2S) 3030 | -3/Testing | Unleashed a protovariant (PL-T7MT9RIF2S) 3192 | -3/Testing | Reached level 26 3370 | -3/Testing | Spotted Alpha 7 3450 | -3/Testing | Identified exit to Research 3450 | -3/Testing | Discovered exit to Research (range 14) 3502 | -3/Testing | Destroyed Alpha 7 3756 | -3/Testing | Self-destructed Last Messages --------------- 03580_ Field strength at 93. 03580_ Field strength at 86. 03581_ Field strength at 79. 03582_ Field strength at 72. 03583_ Field strength at 65. 03584_ K-01 Serf collects debris. 03584_ Field strength at 58. 03585_ Field strength at 51. 03586_ Field strength at 44. 03587_ Field strength at 37. 03588_ K-01 Serf collects debris. 03588_ Field strength at 30. 03589_ Field strength at 23. 03590_ Field strength at 16. 03591_ Field strength at 9. 03592_ Field strength at 2. 03593_ K-01 Serf collects debris. 03593_ Stasis field depleted. 03606_ U-05 Engineer lays Concrete. 03655_ Reinforced Shell breached. Map ----- +----------------------------------------------------+ | ???#?????????????????????????????????????????????? | | ?##??????????????????????????????????????????????? | | ####????#??#?????????????????????????????????????? | | ?####?#??#????????????????????#??????????????????? | | ########?#??#????????????????#????????#?#????????? | | ######?#####?????????#???#??????#####??#?????????? | | ?###?######???????##????#????##?#???????#????????? | | ####?##?#?#??#???#?###??#??????#?#?#????#????????? | | #######?######?????###?#???##?#?##??#???#???#????? | | ##############??#?????????#####??######?##???????? | | #########?####?#???##???#########?#######??#?????? | | ################?#??#?#####################?#????? | | ################???################?###?###?#??#?? | | #############?##???#?#######?#??##########?#?#?#?# | | ################?#?##########?#####?##?#?######?#? | | ###################?########?#?#################?? | | #######################?#??####?#?####?##??######? | | ##############??######??#####?#############?#####? | | ####################?################?##########?? | | #######################?####### ####?#?######## | | ############################### # ""#####??#### | | ########################"""""## # " ###?##### | | ##################?###?#" " " + + ""######?## | | ######################## # # ? "######## | | ########################" " # # ""####?#?? | | ###################@""### #""?"""######## | | ###################"]"### ############### | | #############?#########?# ####?########## | | ##################?###### ########?####?# | | ######################### ### ###?#### | | """ ######################### ###"""#####?### | | """ ################??####### ###T "######## | | """ "" ########?############# #### ######## | | """ """##########?## """"" # ###""""######## | | """ T"############# """"" # T######## | | """############# """"" # ######## | | """ "" ############# """"" + ############### | | """ ################ # ############### | | """ ##########?##### # ############### | | """ ################ # # ##### | | """ ####### # # # ##### | | #######? """ # # # * ##### | | #############? """ ########## # ##### | | ############?? """ ### / ##### | | #############? ? ### # """"" ##### | | ###########??? """ ### # """"" ##### | | ############# """ ### # """"" ##### | | ##########?## """ ### ########"############# | | ###?####?#?#? ? ### ####### # | | ####################+### ####### """ "" # | +----------------------------------------------------+ Best States ------------- Heat Dissipation 143 Energy Generation 58 Energy Capacity 880 Matter Stores 300 Matter Capacity 300 Sight Range 18 Terrain Scan Range 20 Terrain Scan Density 510 Jamming Range 16 Power Amplification 20 EM Shielding 2 Corruption Block 20 Armor Coverage 225 Resistance: KI 45 Resistance: TH 65 Resistance: EX 35 Resistance: EM 35 Resistance: I 35 Resistance: S 35 Resistance: P 35 Weapon Shielding 33 Phase Shifting 10 Evasion (%) 75 Targeting Accuracy 5 Armor Integrity Analysis 30 Energy Filtering 30 Salvage Targeting 3 Offensive Hacking 45 Defensive Hacking 5 Item Schematics ----------------- Spectral Analyzer | -3/Testing | Archive Fusion Reactor | -3/Testing | Archive Adv. Myomer Leg | -3/Testing | Archive Robot Schematics ------------------ C-55 Analyst | -3/Testing | Archive Fabricated ------------ Nothing Repaired ---------- Nothing Alien Tech Used ----------------- None Achievements -------------- None Challenges ------------ None RPGLIKE | -11 -10 -10 -8 -6 -6 -6 -6 -5 -4 -4 -3 -3 --------- Run | Yrd Mat Sub Scr Fac Was Fac DSF Fac Fac DSF Res Tes Levels Raised 25 | . . . 3 10 . . 2 1 2 1 4 2 XP Earned 44825 | 6000 . 1000 3539 16032 200 70 2250 1650 2533 2050 6343 3158 XP Spent 43500 | 5820 . . 3105 16505 . . . 4400 . 3070 7550 3050 Upgrades 79 | 16 . . 7 26 . . . 4 . 2 9 15 Power Slot 1 | . . . . 1 . . . . . . . . Propulsion Slot 3 | 1 . . 1 1 . . . . . . . . Utility Slot 10 | 2 . . 1 4 . . . 1 . 1 1 . Weapon Slot 4 | 1 . . 1 1 . . . . . . 1 . Core Integrity 18 | . . . 3 5 . . . . . . . 10 Heat Dissipation 12 | 1 . . . 4 . . . 1 . 1 5 . Energy Generation 2 | 1 . . . . . . . 1 . . . . Energy Storage 1 | . . . . . . . . . . . 1 . Mass Support 4 | 1 . . . 1 . . . 1 . . 1 . Inventory Capacity 5 | 4 . . . 1 . . . . . . . . Sight Range 2 | 1 . . 1 . . . . . . . . . Terrain Scan Density 5 | 3 . . . 2 . . . . . . . . Ranged Accuracy 1 | . . . . 1 . . . . . . . . Hack Attack % 5 | 1 . . . 4 . . . . . . . . Hack Defense % 1 | . . . . 1 . . . . . . . . KI Resistance % 2 | . . . . . . . . . . . . 2 TH Resistance % 3 | . . . . . . . . . . . . 3 Protomatter Created 1454 | . . . . . . . 253 . . 120 635 446 Integrity Restored 3382 | . 19 . . . . . 554 . . 276 1681 852 Core 2676 | . . . . . . . 485 . . 276 1221 694 Parts 706 | . 19 . . . . . 69 . . . 460 158 Protomatter Decayed 516 | . 4 5 . . . . 67 . . . 6 434 Game ------ Seed MultireflexFlightMaul Manual? 0 Play Time 00:34:47 Cumulative 1041.9 hours Start 2025.07.23 @ 18:53:07 End 2025.07.23 @ 19:27:56 Sessions 1 Manual Loads 0 Difficulty Explorer Special Mode Winter2019/RPGLIKE Game No. 324 Rogue 104 Adventurer 111 Explorer 109 Win Type - Total 48 Types 22/8/1/7/3/1/1/1/1/3 Lore% 97 Gallery% 99 Achievement% 97 Wizard Run 0 Options --------- Layout 2 ASCII 0 Keyboard 0 Movement Mouse Keybinds 0 Fullscreen 2 Font 24/Smallcaps Map View 50x44 Zoom Use 0% Tactical HUD 1 Map Filters NONE Filters NONE Steam 1 RUN: 8f41562f-ecee-40a0-bbd1-13fc71e4f0ac